[Event "Chinese League Division-A 2024"]
[Site "Fuling Chongqing"]
[Date "2024.06.26"]
[Round "1.13"]
[White "Liu, Qingnan"]
[Black "Shen, Fuyan"]
[Result "1-0"]
[ECO "B48"]
[WhiteElo "2540"]
[BlackElo "1830"]
[Annotator "TA"]
[PlyCount "101"]
[EventDate "2024.06.28"]
[EventType "team-tourn"]
[EventCountry "CHN"]
[SourceTitle "playchess.com"]
[Source "ChessBase"]
[SourceQuality "1"]
[TimeControl "40/5400+30:1800+30"]

{[%evp 11,101,32,46,35,36,19,20,36,45,41,49,32,30,49,49,67,43,53,48,45,87,90,86,89,83,83,83,83,97,110,118,97,117,100,93,96,104,102,104,93,170,171,182,182,213,220,197,228,193,201,293,301,279,307,301,302,296,310,289,297,381,365,397,381,404,400,403,376,413,387,415,405,624,606,706,695,687,702,29950,938,916,889,1082,1086,1414,1325,29977,29974,29974,29975,29973,29974]} 1. e4 {[%emt 0:00:02]} c5 {[%emt 0:00:08]} 2. Nf3 {[%emt 0:00:02]} e6 {[%emt 0:00:08]} 3. d4 {[%emt 0:00:01]} cxd4 {[%emt 0:00:08]} 4. Nxd4 {[%emt 0:00:02]} Nc6 {[%emt 0:00:08]} 5. Nc3 {[%emt 0:00:03][%cal Bb1c3,Bc3e2,Be2d4,Bd4c6][%mdl 32]} Qc7 {[%emt 0:00:06]} 6. Be3 {[%emt 0:00:01]} a6 {[%emt 0:00:07]} 7. Qf3 {[%emt 0:00:02]} b5 {[%emt 0:01:50][%cal Bb7b5,Bb5b4][%mdl 32]} 8. Nxc6 {[%emt 0:00:04]} Qxc6 {[%emt 0:00:19]} 9. Bd3 {[%emt 0:00:04] The position is equal.} b4 {[%emt 0:01:57]} 10. Ne2 {[%emt 0:00:08]} Bb7 {[%emt 0:01:51]} 11. Qg3 {[%emt 0:00:59]} Nf6 {[%emt 0:07:49][%cal Bg8f6,Bf6e4,Be4g3,Bg3h1][%mdl 32]} 12. Nd4 {[%emt 0:00:56]} Nxe4 {[%emt 0:05:16]} 13. Nxc6 {[%emt 0:02:28]} Nxg3 {[%emt 0:00:05]} 14. Na5 $1 {[%emt 0:00:24]} Nxh1 {[%emt 0:02:41]} (14... Bxg2 $2 15. Rg1 $18) 15. Nxb7 {[%emt 0:00:08]} Be7 {[%emt 0:09:17]} 16. f4 {[%emt 0:01:02] White is more active.} Bh4+ {[%emt 0:08:40]} 17. Ke2 {[%emt 0:00:09]} Nf2 {[%emt 0:00:42]} 18. Bxf2 {[%emt 0:00:15]} Bxf2 {[%emt 0:00:03]} 19. Kxf2 {[%emt 0:00:05]} Ke7 {[%emt 0:00:31]} 20. Na5 {[%emt 0:01:28]} Rhc8 {[%emt 0:04:32]} 21. a3 {[%emt 0:00:45]} (21. Bxh7 $2 g6 22. Rc1 Rc5 $19 (22... Rh8 $2 23. Bxg6 fxg6 24. Nc4 $19)) 21... Rab8 {[%emt 0:02:14]} 22. Nb3 {[%emt 0:00:54]} (22. Bxh7 $2 g6 23. axb4 Rxc2+ 24. Kg3 Rh8 (24... Rxb2 $2 25. Nc4 $19) (24... Rxb4 $2 25. h4 $19) 25. Bxg6 Rg8 $19 (25... fxg6 $2 26. Ra3 $19) (25... Rxb2 26. Rb1 $11)) 22... bxa3 {[%emt 0:12:12]} 23. Rxa3 {[%emt 0:00:15]} Rb6 {[%emt 0:00:22]} 24. Ke3 {[%emt 0:00:37]} (24. Bxh7 $2 g6 25. Nd4 Rh8 (25... Rxb2 $2 26. f5 $19) 26. Bxg6 fxg6 $19) 24... d5 {[%emt 0:01:51]} 25. Kd2 {[%emt 0:08:44]} (25. Bxa6 Rxc2 26. Be2 g6 $17 (26... Rxb2 27. Ra7+ Kd6 28. Nd4 $15)) (25. Bxh7 g6 26. Nd4 Rh8 (26... Rxb2 27. Rxa6 Rh8 28. Bxg6 $11) 27. Bxg6 fxg6 $17) 25... Rcc6 {[%emt 0:00:45]} (25... f6 $16 26. Bxa6 (26. Rxa6 Rxa6 27. Bxa6 Rb8 $16) 26... Ra8) 26. Nd4 $18 {[%emt 0:02:22]} (26. Bxh7 g6 $15) 26... Rd6 {[%emt 0:03:45]} 27. Kc3 {[%emt 0:01:24]} (27. Bxh7 g6 $11) 27... g6 {[%emt 0:00:43]} 28. b4 {[%emt 0:00:20]} f6 {[%emt 0:01:00]} 29. Nb3 {[%emt 0:02:57]} e5 {[%emt 0:02:03]} 30. Nc5 {[%emt 0:00:35]} e4 {[%emt 0:05:09]} (30... Rd8 {was worth a try.} 31. Nxa6 (31. Rxa6 Rxa6 32. Bxa6 Rb8 $18) (31. Bxa6 Ra8 $18) 31... Kd6) 31. Bxa6 {[%emt 0:00:38]} d4+ {[%emt 0:00:05]} 32. Kc4 {[%emt 0:00:06]} d3 {[%emt 0:02:27]} 33. cxd3 {[%emt 0:00:05]} exd3 {[%emt 0:00:13] [#] Strongly threatening ...d2.} 34. Ra1 $1 {[%emt 0:00:37]} d2 {[%emt 0:08:41]} 35. Rd1 {[%emt 0:00:05]} Rb8 {[%emt 0:10:52]} 36. Kc3 {[%emt 0:00:09]} f5 {[%emt 0:00:33]} 37. Bc4 {[%emt 0:00:34]} (37. Rxd2 Rxd2 38. Kxd2 Rxb4 $16) 37... Ra8 {[%emt 0:04:48]} 38. Bd3 {[%emt 0:03:03]} (38. Rxd2 Ra3+ 39. Bb3 Rxd2 40. Kxd2 Kd6 41. Nb7+ Kc6 42. Na5+ Kb5) 38... Ra3+ {[%emt 0:01:26]} 39. Kc4 {[%emt 0:00:03]} ({Don't do} 39. Kxd2 Rd4 40. Rb1 Rxf4 $18) 39... Ra2 {[%emt 0:01:15]} 40. Kb3 {[%emt 0:00:00]} Ra8 {[%emt 0:00:00]} 41. Rxd2 {[%emt 0:00:05]} Rd4 {[%emt 0:01:37]} (41... Rc8 $142 42. Kc3 Re6) 42. Re2+ {[%emt 0:00:02]} Kd6 {[%emt 0:00:17]} 43. Re6+ {[%emt 0:00:13]} Kc7 {[%emt 0:01:35]} 44. b5 {[%emt 0:00:37] [#] White threatens b6+ and mate.} Rad8 {[%emt 0:02:11]} 45. Be2 {[%emt 0:02:11]} (45. b6+ $142 Kb8 46. Bb5 Rd1 47. Re7 Ra1 48. Rb7+ (48. Rxh7 Kc8 49. Rc7+ Kb8 50. Na6+ Rxa6 51. Bxa6 Rh8 52. Kb4 Re8) (48. Na6+ Rxa6 49. Bxa6 h5 $18) 48... Kc8 49. Rxh7 (49. Rc7+ Kb8 50. Rxh7 Ra5 51. Na6+ Rxa6 52. Bxa6 Rg8 53. Kc4 Rf8) 49... g5 50. Na6 (50. fxg5 f4 51. Na6 Rd7 52. Rxd7 Rb1+ 53. Kc4 Rc1+ 54. Kd5 Rd1+ 55. Kc6 Rxd7)) 45... R8d6 {[%emt 0:00:44]} 46. Re7+ {[%emt 0:00:09]} Kc8 {[%emt 0:02:09]} 47. Bf3 {[%emt 0:00:13]} Rd2 {[%emt 0:06:35]} 48. Rxh7 {[%emt 0:00:06] aiming for Kc3.} Rf2 {[%emt 0:00:49]} 49. Bb7+ {[%emt 0:00:32] White mates.} Kb8 {[%emt 0:01:54]} 50. Bc6 {[%emt 0:00:08]} Rf1 {[%emt 0:01:36]} 51. Kb4 {[%emt 0:02:00] Weighted Error Value: White=0.03 (flawless) /Black=0.39.  Mistake:       	---       	Black=3      Inaccurate:     	---       	Black=1      OK:         	White=17    	Black=11     Best:        	White=3     	---        Strong:       	White=2     	---} 1-0

[Event "Chinese League Division-A 2024"]
[Site "Fuling Chongqing"]
[Date "2024.06.26"]
[Round "1.14"]
[White "Zhao, Yunqing"]
[Black "Zhang, Xiao"]
[Result "1-0"]
[ECO "E04"]
[WhiteElo "1986"]
[BlackElo "2193"]
[Annotator "RC"]
[PlyCount "99"]
[EventDate "2024.06.28"]
[EventType "team-tourn"]
[EventCountry "CHN"]
[SourceTitle "playchess.com"]
[Source "ChessBase"]
[SourceQuality "1"]
[TimeControl "40/5400+30:1800+30"]

1. d4 {[%emt 0:00:03]} Nf6 {[%emt 0:00:20]} 2. c4 {[%emt 0:00:10]} e6 {[%emt 0:00:09]} 3. g3 {[%emt 0:00:08]} d5 {[%emt 0:00:12]} 4. Nf3 {[%emt 0:00:06]} dxc4 {[%emt 0:00:21]} 5. Bg2 {[%emt 0:00:08]} a6 {[%emt 0:00:04]} 6. O-O {[%emt 0:00:36]} Nc6 {[%emt 0:00:05]} 7. e3 {[%emt 0:00:10]} Rb8 {[%emt 0:00:04]} 8. Nfd2 {[%emt 0:00:08]} e5 {[%emt 0:00:04]} 9. Bxc6+ {[%emt 0:00:11]} bxc6 {[%emt 0:00:04]} 10. dxe5 {[%emt 0:00:04]} Ng4 {[%emt 0:00:02]} 11. Nxc4 {[%emt 0:00:06]} Be6 {[%emt 0:00:04]} 12. Nbd2 {[%emt 0:00:12]} Bb4 {[%emt 0:00:04]} 13. Qc2 {[%emt 0:01:03]} h5 {[%emt 0:00:10]} 14. b3 {[%emt 0:03:04]} h4 {[%emt 0:00:05]} 15. Nf3 {[%emt 0:01:06]} hxg3 {[%emt 0:00:06]} 16. fxg3 {[%emt 0:03:41]} Qe7 {[%emt 0:02:19]} 17. Bb2 {[%emt 0:10:31]} Rh3 {[%emt 0:16:17]} 18. Qg2 {[%emt 0:12:15]} Rh5 {[%emt 0:00:24]} 19. h3 {[%emt 0:16:41]} Bxc4 {[%emt 0:03:33]} 20. hxg4 {[%emt 0:00:06]} Bxf1 {[%emt 0:00:08]} 21. Rxf1 {[%emt 0:00:07]} Rh6 {[%emt 0:22:13]} 22. Nd4 {[%emt 0:04:19]} Qxe5 {[%emt 0:20:57]} 23. Nf5 {[%emt 0:01:35]} Qd5 {[%emt 0:00:25]} 24. Nxh6 {[%emt 0:06:53]} Qxg2+ {[%emt 0:01:37]} 25. Kxg2 {[%emt 0:00:04]} gxh6 {[%emt 0:00:03]} 26. Rf6 {[%emt 0:02:18]} Rd8 {[%emt 0:00:31]} 27. Bd4 {[%emt 0:03:36]} c5 {[%emt 0:10:19]} 28. Be5 {[%emt 0:00:47]} Rd2+ {[%emt 0:00:40]} 29. Rf2 {[%emt 0:00:38]} Kd7 {[%emt 0:02:52]} 30. Rxd2+ {[%emt 0:02:32]} Bxd2 {[%emt 0:00:04]} 31. Kf3 {[%emt 0:00:13]} c6 {[%emt 0:00:32]} 32. Bf4 {[%emt 0:02:47]} Ke6 {[%emt 0:00:11]} 33. Bxh6 {[%emt 0:01:08]} Be1 {[%emt 0:01:51]} 34. Bf4 {[%emt 0:01:41]} Kd5 {[%emt 0:02:28]} 35. Ke2 {[%emt 0:00:18]} Bc3 {[%emt 0:00:13]} 36. Kd3 {[%emt 0:00:06]} Be1 {[%emt 0:00:04]} 37. e4+ {[%emt 0:04:20]} Ke6 {[%emt 0:00:04]} 38. Ke2 {[%emt 0:00:05]} Bc3 {[%emt 0:00:34]} 39. g5 {[%emt 0:01:54]} Ba5 {[%emt 0:03:40]} 40. Kf3 {[%emt 0:00:00]} Bc3 {[%emt 0:00:00]} 41. Kg4 {[%emt 0:07:30]} a5 {[%emt 0:18:41]} 42. a4 {[%emt 0:03:08]} Bd4 {[%emt 0:02:34]} 43. Kh5 {[%emt 0:01:09]} Bc3 {[%emt 0:01:30]} 44. g6 {[%emt 0:02:20]} Kf6 {[%emt 0:00:48]} 45. gxf7 {[%emt 0:00:43]} Kxf7 {[%emt 0:00:02]} 46. Kg5 {[%emt 0:01:02]} Ke6 {[%emt 0:01:12]} 47. Kg6 {[%emt 0:00:48]} Bd4 {[%emt 0:00:53]} 48. g4 {[%emt 0:00:24]} Bf6 {[%emt 0:00:27]} 49. g5 {[%emt 0:00:21]} Bd8 {[%emt 0:00:10]} 50. Kh6 {[%emt 0:01:20]} 1-0

[Event "Chinese League Division-A 2024"]
[Site "Fuling Chongqing"]
[Date "2024.06.26"]
[Round "1.15"]
[White "Hu, Yu A."]
[Black "Du, Yuxin"]
[Result "1/2-1/2"]
[ECO "D60"]
[WhiteElo "2127"]
[BlackElo "1960"]
[Annotator "RC"]
[PlyCount "100"]
[EventDate "2024.06.28"]
[EventType "team-tourn"]
[EventCountry "CHN"]
[SourceTitle "playchess.com"]
[Source "ChessBase"]
[SourceQuality "1"]
[TimeControl "40/5400+30:1800+30"]

1. d4 {[%emt 0:00:07]} Nf6 {[%emt 0:00:19]} 2. c4 {[%emt 0:00:19]} e6 {[%emt 0:00:17]} 3. Nc3 {[%emt 0:00:16]} d5 {[%emt 0:00:24]} 4. Nf3 {[%emt 0:00:24]} Be7 {[%emt 0:00:55]} 5. Bg5 {[%emt 0:00:26]} O-O {[%emt 0:12:38]} 6. e3 {[%emt 0:01:37]} b6 {[%emt 0:06:01]} 7. cxd5 {[%emt 0:05:13]} Nxd5 {[%emt 0:01:46]} 8. Bxe7 {[%emt 0:01:16]} Qxe7 {[%emt 0:00:37]} 9. Bd3 {[%emt 0:09:19]} Bb7 {[%emt 0:09:15]} 10. O-O {[%emt 0:00:49]} Nxc3 {[%emt 0:08:15]} 11. bxc3 {[%emt 0:00:07]} Nd7 {[%emt 0:00:14]} 12. Nd2 {[%emt 0:08:11]} e5 {[%emt 0:07:23]} 13. Qc2 {[%emt 0:09:39]} g6 {[%emt 0:03:20]} 14. Be4 {[%emt 0:06:53]} Bxe4 {[%emt 0:13:34]} 15. Qxe4 {[%emt 0:00:06]} Rfe8 {[%emt 0:03:35]} 16. Qc6 {[%emt 0:01:29]} Rac8 {[%emt 0:09:50]} 17. Rfd1 {[%emt 0:01:46]} Kg7 {[%emt 0:03:41]} 18. a4 {[%emt 0:06:33]} a5 {[%emt 0:03:50]} 19. Nc4 {[%emt 0:01:22]} Qe6 {[%emt 0:05:49]} 20. Qxe6 {[%emt 0:09:03]} Rxe6 {[%emt 0:00:10]} 21. Rac1 {[%emt 0:02:46]} h5 {[%emt 0:04:50]} 22. Na3 {[%emt 0:07:59]} Nf6 {[%emt 0:03:07]} 23. Nb5 {[%emt 0:05:00]} Ree8 {[%emt 0:01:20]} 24. Kf1 {[%emt 0:11:07]} Kf8 {[%emt 0:00:23]} 25. c4 {[%emt 0:02:23]} exd4 {[%emt 0:00:18]} 26. exd4 {[%emt 0:01:36]} Red8 {[%emt 0:00:56]} 27. f3 {[%emt 0:04:09]} Ne8 {[%emt 0:00:34]} 28. d5 {[%emt 0:02:14]} Nd6 {[%emt 0:00:29]} 29. Na7 {[%emt 0:00:04]} Ra8 {[%emt 0:00:03]} 30. Nc6 {[%emt 0:00:05]} Re8 {[%emt 0:00:56]} 31. c5 {[%emt 0:00:12]} bxc5 {[%emt 0:00:30]} 32. Rxc5 {[%emt 0:00:07]} Nb7 {[%emt 0:00:35]} 33. Rc3 {[%emt 0:00:54]} Nd6 {[%emt 0:00:24]} 34. Nd4 {[%emt 0:01:36]} Re5 {[%emt 0:00:14]} 35. Nc6 {[%emt 0:00:43]} Ree8 {[%emt 0:00:17]} 36. Rb1 {[%emt 0:00:13]} Nf5 {[%emt 0:00:57]} 37. Kf2 {[%emt 0:00:28]} Nd6 {[%emt 0:00:35]} 38. Rc5 {[%emt 0:00:33]} Ra6 {[%emt 0:00:34]} 39. Rb8 {[%emt 0:02:03]} Rxb8 {[%emt 0:00:30]} 40. Nxb8 {[%emt 0:00:00]} Ra8 {[%emt 0:00:00]} 41. Nc6 {[%emt 0:00:49]} Nc8 {[%emt 0:03:45]} 42. Ne5 {[%emt 0:02:13]} Ra7 {[%emt 0:01:56]} 43. Nc4 {[%emt 0:00:28]} Nb6 {[%emt 0:13:40]} 44. Nxb6 {[%emt 0:01:41]} cxb6 {[%emt 0:00:06]} 45. Rb5 {[%emt 0:02:44]} Rc7 {[%emt 0:06:07]} 46. Rxb6 {[%emt 0:01:51]} Rc4 {[%emt 0:00:09]} 47. Ke3 {[%emt 0:01:09]} Ke7 {[%emt 0:03:08]} 48. Rb7+ {[%emt 0:01:08]} Kf6 {[%emt 0:00:07]} 49. d6 {[%emt 0:07:25]} Rxa4 {[%emt 0:00:14]} 50. Re7 {[%emt 0:01:05]} Ra1 {[%emt 0:00:06]} 1/2-1/2

[Event "Chinese League Division-A 2024"]
[Site "Fuling Chongqing"]
[Date "2024.06.26"]
[Round "1.16"]
[White "Xu, Yinglun"]
[Black "Chen, Qi b"]
[Result "1/2-1/2"]
[ECO "A20"]
[WhiteElo "2526"]
[BlackElo "2481"]
[Annotator "RC"]
[PlyCount "60"]
[EventDate "2024.06.28"]
[EventType "team-tourn"]
[EventCountry "CHN"]
[SourceTitle "playchess.com"]
[Source "ChessBase"]
[SourceQuality "1"]
[TimeControl "40/5400+30:1800+30"]

1. c4 {[%emt 0:00:04]} e5 {[%emt 0:00:05]} 2. a3 {[%emt 0:01:17]} Nf6 {[%emt 0:01:13]} 3. d3 {[%emt 0:01:45]} d5 {[%emt 0:06:31]} 4. cxd5 {[%emt 0:00:19]} Nxd5 {[%emt 0:00:03]} 5. Nf3 {[%emt 0:00:11]} Bd6 {[%emt 0:01:43]} 6. Nc3 {[%emt 0:15:01]} Be6 {[%emt 0:03:15]} 7. g3 {[%emt 0:08:52]} h6 {[%emt 0:01:12]} 8. Bg2 {[%emt 0:00:55]} c5 {[%emt 0:00:53]} 9. Ng5 {[%emt 0:20:19]} hxg5 {[%emt 0:00:17]} 10. Bxd5 {[%emt 0:00:50]} Bxd5 {[%emt 0:00:59]} 11. Nxd5 {[%emt 0:01:11]} Nc6 {[%emt 0:01:05]} 12. Qa4 {[%emt 0:04:16]} Kf8 {[%emt 0:20:39]} 13. e4 {[%emt 0:10:45]} f6 {[%emt 0:05:59]} 14. Be3 {[%emt 0:01:05]} Ne7 {[%emt 0:03:21]} 15. Nc3 {[%emt 0:02:25]} b6 {[%emt 0:05:29]} 16. O-O-O {[%emt 0:03:33]} Rh3 {[%emt 0:07:05]} 17. Kb1 {[%emt 0:00:42]} Qe8 {[%emt 0:01:29]} 18. Qc4 {[%emt 0:01:37]} Rd8 {[%emt 0:00:58]} 19. Qe6 {[%emt 0:03:04]} Qd7 {[%emt 0:00:37]} 20. Qc4 {[%emt 0:00:05]} Qe8 {[%emt 0:02:35]} 21. Qe6 {[%emt 0:00:05]} Qd7 {[%emt 0:00:59]} 22. Qc4 {[%emt 0:00:06]} Rc8 {[%emt 0:15:04]} 23. f3 {[%emt 0:01:03]} g6 {[%emt 0:00:41]} 24. Rd2 {[%emt 0:00:48]} Kg7 {[%emt 0:00:10]} 25. Rf1 {[%emt 0:01:35]} Bb8 {[%emt 0:00:59]} 26. Rff2 {[%emt 0:01:49]} Bd6 {[%emt 0:01:51]} 27. Rf1 {[%emt 0:00:09]} Bb8 {[%emt 0:00:03]} 28. Rff2 {[%emt 0:00:05]} Bd6 {[%emt 0:00:10]} 29. Rf1 {[%emt 0:00:10]} Bb8 {[%emt 0:00:07]} 30. Rff2 {[%emt 0:00:04]} Bd6 {[%emt 0:00:43]} 1/2-1/2

[Event "Chinese League Division-A 2024"]
[Site "Fuling Chongqing"]
[Date "2024.06.26"]
[Round "1.17"]
[White "Xu, Jun"]
[Black "Xie, Kaifan"]
[Result "0-1"]
[ECO "A28"]
[WhiteElo "2471"]
[BlackElo "2376"]
[Annotator "TA"]
[PlyCount "60"]
[EventDate "2024.06.28"]
[EventType "team-tourn"]
[EventCountry "CHN"]
[SourceTitle "playchess.com"]
[Source "ChessBase"]
[SourceQuality "1"]
[TimeControl "40/5400+30:1800+30"]

{[%evp 12,60,13,8,16,-34,-39,-63,-43,-83,-58,-124,-122,-122,-103,-127,-125,-122,-124,-143,-119,-141,-122,-150,-119,-132,-110,-114,-110,-108,-107,-145,-159,-222,-220,-226,-226,-309,-309,-312,-308,-541,-557,-756,-761,-753,-749,-806,-750,-774,-760]} 1. c4 {[%emt 0:00:07]} Nf6 {[%emt 0:00:14]} 2. Nc3 {[%emt 0:00:07]} e5 {[%emt 0:01:12]} 3. Nf3 {[%emt 0:00:22]} Nc6 {[%emt 0:00:14]} 4. a3 {[%emt 0:00:48]} d5 {[%emt 0:06:40]} 5. cxd5 {[%emt 0:00:10]} Nxd5 {[%emt 0:00:06]} 6. Qc2 {[%emt 0:00:17]} Be7 {[%emt 0:07:21]} 7. e3 {[%emt 0:03:18]} Nxc3 {[%emt 0:10:34]} 8. Qxc3 {[%emt 0:03:45]} (8. bxc3 $11 Qd6 9. Rb1) 8... Qd6 $15 {[%emt 0:02:25]} 9. d3 {[%emt 0:04:32]} O-O {[%emt 0:02:14] Black is slightly better.} 10. Nd2 {[%emt 0:00:02]} a5 {[%emt 0:05:35]} 11. b3 {[%emt 0:05:00]} (11. Be2 $15) 11... Rd8 $17 {[%emt 0:04:35]} 12. Bb2 {[%emt 0:05:31]} Bf5 {[%emt 0:08:35][%cal Od6g6]} 13. Nc4 {[%emt 0:06:24]} Qg6 {[%emt 0:02:27][%cal Rf5d3]} 14. e4 {[%emt 0:02:52]} Be6 {[%emt 0:03:39]} 15. Qc1 {[%emt 0:00:01]} f6 {[%emt 0:01:57]} 16. Nd2 {[%emt 0:02:02]} Rac8 {[%emt 0:06:45] Black has more active pieces.} 17. g3 {[%emt 0:01:22]} Qf7 {[%emt 0:01:46][%cal Of6f5]} 18. Qc2 {[%emt 0:01:03]} Nd4 {[%emt 0:03:21]} 19. Bxd4 {[%emt 0:00:10]} Rxd4 {[%emt 0:00:04]} 20. Be2 {[%emt 0:01:35]} Qf8 $36 {[%emt 0:01:50][%mdl 2048] Black is in control.} 21. Nc4 {[%emt 0:03:26]} b5 {[%emt 0:12:44]} 22. Nxa5 {[%emt 0:01:05]} (22. Ne3 $17) 22... c5 $19 {[%emt 0:00:02] White is weak on the dark squares} ({Stronger than} 22... Bxa3 23. Nc6 Bb4+ 24. Kf1 Bh3+ 25. Kg1 $15) 23. O-O {[%emt 0:01:39]} Qd8 {[%emt 0:00:07]} 24. Qc3 {[%emt 0:12:45] [#]} Qb6 $1 {[%emt 0:01:48]} 25. Rfc1 {[%emt 0:03:22] [#]} Bd8 $1 {[%emt 0:02:42]} ({Not} 25... Ra8 26. b4 $15) 26. b4 $2 {[%emt 0:00:13]} (26. Nc4 {was worth a try.} bxc4 27. bxc4) 26... cxb4 {[%emt 0:01:18] Black is clearly winning.} 27. Qxc8 {[%emt 0:01:31]} Bxc8 {[%emt 0:00:12]} 28. Nb3 {[%emt 0:00:00]} Be6 {[%emt 0:01:32]} 29. Nxd4 {[%emt 0:00:08]} Qxd4 {[%emt 0:00:01]} 30. axb4 {[%emt 0:00:10]} Bb6 {[%emt 0:00:20] White did not feel at home in the position after the opening.   Weighted Error Value: White=0.47/Black=0.07 (flawless) .  Mistake:       	White=4     	---        Inaccurate:     	White=4     	---        OK:         	White=5     	Black=6      Best:        	White=1     	Black=2      Strong:       	---       	Black=2} 0-1

[Event "Chinese League Division-A 2024"]
[Site "Fuling Chongqing"]
[Date "2024.06.26"]
[Round "1.18"]
[White "Wu, Yixing"]
[Black "Lin, Chen"]
[Result "1/2-1/2"]
[ECO "D93"]
[WhiteElo "2326"]
[BlackElo "2484"]
[Annotator "TA"]
[PlyCount "72"]
[EventDate "2024.06.28"]
[EventType "team-tourn"]
[EventCountry "CHN"]
[SourceTitle "playchess.com"]
[Source "ChessBase"]
[SourceQuality "1"]
[TimeControl "40/5400+30:1800+30"]

{[%evp 17,72,0,0,0,21,0,0,0,0,0,0,0,7,0,18,0,16,13,15,6,11,4,24,22,27,22,39,45,41,16,16,13,22,14,27,0,0,0,0,0,0,0,0,0,0,0,0,0,0,0,0,0,0,0,0,0,0]} 1. d4 {[%emt 0:00:04]} Nf6 {[%emt 0:00:16]} 2. c4 {[%emt 0:00:09]} g6 {[%emt 0:00:37]} 3. Nc3 {[%emt 0:00:08]} d5 {[%emt 0:00:22]} 4. Bf4 {[%emt 0:00:50]} Bg7 {[%emt 0:00:19]} 5. e3 {[%emt 0:00:08]} c5 {[%emt 0:03:58]} 6. dxc5 {[%emt 0:00:16]} Qa5 {[%emt 0:00:51]} 7. Rc1 {[%emt 0:00:33]} dxc4 {[%emt 0:00:55]} 8. Bxc4 {[%emt 0:00:19]} O-O {[%emt 0:00:21]} 9. Nf3 {[%emt 0:02:16]} Qxc5 {[%emt 0:03:36]} 10. Bb3 {[%emt 0:14:04]} Qh5 {[%emt 0:03:11]} 11. h3 {[%emt 0:00:44]} Bg4 {[%emt 0:01:44]} 12. Bh2 {[%emt 0:00:30]} (12. hxg4 $2 {is the wrong capture.} Qxh1+ 13. Ke2 Qxd1+ (13... Qxg2 14. Bxf7+ Rxf7 15. Qb3 $17) 14. Nxd1 Nxg4 $19) 12... Bxf3 {[%emt 0:00:27]} 13. Qxf3 {[%emt 0:00:07]} ({But not} 13. gxf3 Nc6 14. Bg3 Na5 $15) 13... Qxf3 {[%emt 0:00:29]} 14. gxf3 {[%emt 0:00:05]} Nc6 {[%emt 0:00:44]} 15. Ke2 {[%emt 0:07:02]} Rfd8 {[%emt 0:00:30]} 16. Rhd1 {[%emt 0:05:46]} e6 {[%emt 0:03:30]} 17. Ba4 {[%emt 0:09:14]} Nb4 {[%emt 0:08:51]} 18. a3 {[%emt 0:17:44]} Nbd5 {[%emt 0:01:03]} 19. Be5 {[%emt 0:05:05]} Rac8 {[%emt 0:17:36]} 20. Bb3 {[%emt 0:03:31]} Nxc3+ {[%emt 0:02:01]} 21. Rxc3 {[%emt 0:00:15]} Ne8 {[%emt 0:01:10]} 22. f4 {[%emt 0:10:33]} Bxe5 {[%emt 0:02:32]} 23. Rxc8 {[%emt 0:00:37]} Rxc8 {[%emt 0:00:04]} 24. fxe5 $14 {[%emt 0:00:06][%mdl 4096] Endgame. KRB-KRN} Kf8 {[%emt 0:00:36]} 25. Ba4 {[%emt 0:01:46]} a6 {[%emt 0:02:27]} 26. Bxe8 {[%emt 0:01:04]} Kxe8 $11 {[%emt 0:00:04] KR-KR. The position is equal.} 27. f4 {[%emt 0:01:42]} Rc2+ {[%emt 0:02:45]} 28. Rd2 {[%emt 0:00:03]} Rc1 {[%emt 0:00:09]} 29. Rd1 {[%emt 0:01:09]} Rxd1 {[%emt 0:01:17]} 30. Kxd1 {[%emt 0:00:05] KP-KP} Kd7 {[%emt 0:00:03]} 31. Kd2 {[%emt 0:02:54]} Kc6 {[%emt 0:00:22]} 32. h4 {[%emt 0:00:23]} a5 {[%emt 0:14:16]} (32... Kb5 $5) 33. b3 {[%emt 0:00:10]} Kd5 {[%emt 0:01:19] [#] White must now prevent ...Ke4.} 34. Kd3 {[%emt 0:00:06]} Kc5 {[%emt 0:00:05]} 35. Kc3 {[%emt 0:00:08]} Kd5 {[%emt 0:00:40] aiming for ...Ke4.} 36. Kd3 {[%emt 0:00:05]} Kc5 {[%emt 0:00:05] Weighted Error Value: White=0.05 (flawless) /Black=0.06 (flawless) .  Inaccurate:     	White=1     	---        OK:         	White=14    	Black=6      Best:        	White=1     	---} 1/2-1/2

[Event "Chinese League Division-A 2024"]
[Site "Fuling Chongqing"]
[Date "2024.06.26"]
[Round "1.19"]
[White "Guo, Qi"]
[Black "Wang, Qinxuanyi"]
[Result "1-0"]
[ECO "D45"]
[WhiteElo "2362"]
[BlackElo "2149"]
[Annotator "RC"]
[PlyCount "57"]
[EventDate "2024.06.28"]
[EventType "team-tourn"]
[EventCountry "CHN"]
[SourceTitle "playchess.com"]
[Source "ChessBase"]
[SourceQuality "1"]
[TimeControl "40/5400+30:1800+30"]

1. d4 {[%emt 0:00:03]} d5 {[%emt 0:00:09]} 2. c4 {[%emt 0:00:07]} c6 {[%emt 0:00:06]} 3. Nc3 {[%emt 0:00:47]} Nf6 {[%emt 0:00:16]} 4. e3 {[%emt 0:00:23]} e6 {[%emt 0:00:29]} 5. Nf3 {[%emt 0:00:08]} Nbd7 {[%emt 0:00:16]} 6. Be2 {[%emt 0:00:07]} dxc4 {[%emt 0:02:33]} 7. a4 {[%emt 0:00:08]} c5 {[%emt 0:03:57]} 8. Bxc4 {[%emt 0:01:09]} cxd4 {[%emt 0:00:27]} 9. exd4 {[%emt 0:00:07]} Be7 {[%emt 0:01:21]} 10. O-O {[%emt 0:00:15]} O-O {[%emt 0:00:13]} 11. a5 {[%emt 0:05:50]} Nb8 {[%emt 0:05:06]} 12. d5 {[%emt 0:06:31]} exd5 {[%emt 0:12:19]} 13. Nxd5 {[%emt 0:00:12]} Bg4 {[%emt 0:01:45]} 14. Bf4 {[%emt 0:05:33]} Nc6 {[%emt 0:10:10]} 15. Nxe7+ {[%emt 0:03:03]} Nxe7 {[%emt 0:00:19]} 16. Qb3 {[%emt 0:00:09]} Ng6 {[%emt 0:05:46]} 17. Bg3 {[%emt 0:11:15]} Ne4 {[%emt 0:08:30]} 18. Qxb7 {[%emt 0:02:57]} Bxf3 {[%emt 0:07:23]} 19. gxf3 {[%emt 0:00:04]} Nxg3 {[%emt 0:02:47]} 20. hxg3 {[%emt 0:00:14]} Rb8 {[%emt 0:01:40]} 21. Qxa7 {[%emt 0:01:30]} Ne5 {[%emt 0:00:05]} 22. Rfd1 {[%emt 0:08:50]} Nxf3+ {[%emt 0:03:41]} 23. Kg2 {[%emt 0:00:08]} Qf6 {[%emt 0:00:24]} 24. Bd5 {[%emt 0:00:32]} Ng5 {[%emt 0:01:49]} 25. Qd4 {[%emt 0:02:23]} Qa6 {[%emt 0:07:42]} 26. Qc4 {[%emt 0:08:04]} Qh6 {[%emt 0:03:32]} 27. a6 {[%emt 0:02:33]} Rxb2 {[%emt 0:05:02]} 28. Qh4 {[%emt 0:01:47]} Qg6 {[%emt 0:05:14]} 29. Qd4 {[%emt 0:00:40]} 1-0